bitfinex/quotes_SOLUSD_20250129
["timestamp","ask_amount","ask_price","bid_price","bid_amount"]
[1738135692151,0.03,234.08,234.05,20.0]
[1738135692649,0.03,234.08,234.02,11.07218596]
[1738135694648,0.15549,234.08,234.02,6.79908596]
[1738135694848,0.15549,234.08,234.03,20.0]
[1738135695054,6.73608596,234.07,234.02,0.063]
[1738135699158,0.15549,234.08,234.02,0.063]
[1738135700061,0.15549,234.08,234.02,6.79908596]
[1738135701858,0.03,234.08,234.03,6.73608596]
[1738135702058,0.03,234.08,234.05,6.73608596]
[1738135702267,0.03,234.08,234.07,6.73608596]
[1738135703765,0.03,234.08,234.07,30.51296996]
[1738135704160,0.03,234.08,234.07,34.78516996]
[1738135709565,0.03,234.08,234.07,11.00828596]
[1738135712171,0.03,234.11,234.1,20.0]
[1738135712372,0.03,234.11,234.1,50.51296996]
[1738135714276,0.03,234.11,234.1,54.78456996]
[1738135715061,0.0001,234.11,234.1,54.78456996]
[1738135716972,0.03,234.19,234.18,6.73608596]
[1738135718672,0.03,234.19,234.18,11.00628596]
[1738135720274,0.03,234.19,234.18,34.78316996]
[1738135721356,0.03,234.2,234.18,34.78316996]
[1738135721357,0.03,234.2,234.19,23.776884]
[1738135721869,0.03,234.22,234.21,43.776884]
[1738135722157,0.03,234.22,234.21,50.51296996]
[1738135722366,0.0001,234.22,234.21,50.51296996]
[1738135723583,0.0001,234.22,234.21,54.78256996]
[1738135723790,0.03,234.26,234.25,22.0]
[1738135723991,0.03,234.32,234.31,20.0]
[1738135724295,0.03,234.32,234.31,43.776884]
[1738135724962,0.03,234.32,234.31,73.776884]
[1738135725265,82.94498234,234.39,234.31,57.73608596]
[1738135725572,82.94498234,234.39,234.38,6.73608596]
[1738135726177,82.94498234,234.39,234.38,11.00258596]
[1738135726376,82.94498234,234.39,234.36,11.00288596]
[1738135728159,82.94498234,234.39,234.36,6.73608596]
[1738135729201,83.07047234,234.39,234.38,6.73608596]
[1738135729867,82.94498234,234.39,234.38,6.73608596]
[1738135733102,83.07047234,234.39,234.38,6.73608596]
[1738135733303,83.07047234,234.39,234.38,20.0]
[1738135733481,83.07047234,234.39,234.36,6.73608596]
[1738135734483,0.12549,234.38,234.33,6.73608596]
[1738135734810,0.12549,234.38,234.32,0.063]
[1738135734811,6.86157596,234.38,234.32,0.063]
[1738135734980,6.86157596,234.38,234.33,20.0]
[1738135735181,6.86157596,234.38,234.32,0.063]
[1738135735380,7.71487596,234.38,234.32,0.063]
[1738135735575,0.12549,234.36,234.32,0.063]
[1738135736278,0.12549,234.34,234.32,0.063]
[1738135736784,0.12549,234.33,234.32,0.063]
[1738135737392,8.26718596,234.35,234.32,0.063]
[1738135737610,9.12058596,234.35,234.32,0.063]
[1738135737778,0.12549,234.34,234.32,0.063]
[1738135740406,0.97889,234.34,234.32,0.063]
[1738135741204,6.86157596,234.33,234.32,0.063]
[1738135744102,7.71497596,234.33,234.32,0.063]
[1738135750507,0.12549,234.33,234.32,0.063]
[1738135753402,6.86157596,234.33,234.32,0.063]
[1738135753911,7.71497596,234.33,234.32,0.063]
[1738135763313,0.12549,234.25,234.19,6.73608596]
[1738135763513,0.12549,234.25,234.2,23.776884]
[1738135763830,85.4871,234.33,234.16,1.5335]
[1738135763831,0.12549,234.21,234.16,1.5335]
[1738135764024,0.12549,234.19,234.15,20.0]
[1738135764333,0.12549,234.19,234.13,6.73608596]
[1738135764513,0.12549,234.19,234.12,6.4456]
[1738135764825,0.12549,234.17,234.11,8.25668596]
[1738135765031,0.12549,234.17,234.12,23.776884]
[1738135766512,10.63778801,234.2,234.12,34.28918201]
[1738135766731,0.12549,234.2,234.14,34.28918201]
[1738135767320,0.12549,234.21,234.14,34.28918201]
[1738135768736,0.12549,234.19,234.12,10.51229801]
[1738135769238,0.12549,234.19,234.13,23.776884]
[1738135769726,10.51229801,234.22,234.14,10.51229801]
[1738135769932,0.12549,234.21,234.14,10.51229801]
[1738135770232,0.12549,234.19,234.12,34.28918201]
[1738135771020,0.12549,234.19,234.13,4.2711]
[1738135772032,0.12549,234.21,234.13,4.2711]
[1738135773627,0.12549,234.19,234.13,4.2711]
[1738135774631,10.51229801,234.22,234.14,10.51229801]
[1738135775224,0.12549,234.21,234.14,10.51229801]
[1738135775541,0.12549,234.21,234.16,23.776884]
[1738135775833,0.12549,234.21,234.14,14.78309801]
[1738135776011,0.12549,234.19,234.14,4.2708]
[1738135777513,11.36619801,234.22,234.14,10.51229801]
[1738135779124,0.12549,234.21,234.15,23.776884]
[1738135782343,0.12549,234.21,234.15,28.047584]
[1738135782634,11.36609801,234.24,234.16,10.51229801]
[1738135783223,0.12549,234.23,234.16,14.78269801]
[1738135787132,0.12549,234.23,234.17,23.776884]
[1738135787626,0.12549,234.23,234.17,28.047184]
[1738135788134,10.51229801,234.26,234.19,23.776884]
[1738135788646,0.12549,234.25,234.19,23.776884]
[1738135788954,0.12549,234.25,234.19,28.046784]
[1738135793347,6.84970166,234.25,234.19,28.046784]
[1738135794148,0.12549,234.23,234.19,28.046784]
[1738135794643,0.12549,234.23,234.17,6.72421166]
[1738135794822,0.12549,234.23,234.17,10.99451166]
[1738135795550,0.12549,234.23,234.17,4.2703]
[1738135795551,6.84970166,234.23,234.17,4.2703]
[1738135796845,0.12549,234.23,234.17,4.2703]
[1738135797054,89.22421166,234.29,234.22,6.72421166]
[1738135797229,82.5,234.29,234.23,23.776884]
[1738135797427,6.84970166,234.28,234.23,23.776884]
[1738135797851,0.12549,234.25,234.19,6.72421166]
[1738135798150,6.84970166,234.25,234.18,4.2702]
[1738135798328,6.72421166,234.27,234.19,30.50109566]
[1738135798925,0.12549,234.26,234.2,4.2698]
[1738135799549,0.12549,234.26,234.2,10.99401166]
[1738135799740,0.12549,234.27,234.2,10.99401166]
[1738135799943,0.12549,234.27,234.21,30.50109566]
[1738135800141,6.72421166,234.29,234.22,6.72421166]
[1738135800929,6.72421166,234.3,234.25,28.045684]
[1738135801125,6.72421166,234.29,234.25,23.776884]
[1738135801526,0.12549,234.26,234.19,6.72421166]
[1738135801759,0.12549,234.24,234.18,20.0]
[1738135801946,6.84970166,234.24,234.18,20.0]
[1738135802756,6.84970166,234.24,234.19,23.776884]
[1738135803755,7.70350166,234.24,234.16,6.78721166]
[1738135804057,7.70350166,234.24,234.16,0.063]
[1738135804058,0.12549,234.18,234.16,0.063]
[1738135804268,6.84970166,234.17,234.16,0.063]
[1738135812257,0.12549,234.17,234.16,0.063]
[1738135815440,0.12549,234.17,234.16,23.839884]
[1738135815658,0.12549,234.17,234.16,30.56409566]
[1738135816260,6.72421166,234.24,234.16,34.83459566]
[1738135817163,6.72421166,234.29,234.23,23.776884]
[1738135817466,0.03,234.32,234.27,23.776884]
[1738135817761,0.15549,234.32,234.25,23.776884]
[1738135818066,0.12549,234.28,234.23,20.0]
[1738135818261,0.12549,234.28,234.21,6.72421166]
[1738135818446,0.12549,234.28,234.21,30.50109566]
[1738135818844,0.12549,234.24,234.18,4.27]
[1738135819043,0.12549,234.22,234.17,2.86]
[1738135819255,0.12549,234.2,234.16,0.063]
[1738135825367,0.12549,234.2,234.16,4.3334]
[1738135825577,6.72421166,234.24,234.16,11.05761166]
[1738135825876,0.12549,234.23,234.16,11.05761166]
[1738135827060,6.72421166,234.26,234.19,23.776884]
[1738135827369,0.12549,234.25,234.19,23.776884]
[1738135827565,0.12549,234.25,234.2,6.72421166]
[1738135827766,0.12549,234.25,234.21,23.776884]
[1738135828874,0.12549,234.25,234.22,4.2694]
[1738135829278,6.72421166,234.28,234.2,6.72421166]
[1738135829279,0.12549,234.27,234.2,6.72421166]
[1738135829567,0.12549,234.25,234.18,6.72421166]
[1738135829774,0.12549,234.25,234.16,0.063]
[1738135829775,0.12549,234.23,234.16,6.78721166]
[1738135831180,0.12549,234.23,234.17,23.776884]
[1738135831357,0.12549,234.23,234.17,28.047184]
[1738135831670,0.12549,234.24,234.17,28.047184]
[1738135832492,0.12549,234.24,234.17,23.776884]
[1738135833085,6.84970166,234.24,234.17,23.776884]
[1738135833287,6.84970166,234.22,234.16,0.063]
[1738135835470,6.84970166,234.22,234.16,23.839884]
[1738135836383,6.84970166,234.22,234.16,4.3335]
[1738135836685,0.12549,234.23,234.16,4.3335]
[1738135838082,0.12549,234.23,234.16,11.05771166]
[1738135838279,6.72421166,234.26,234.16,11.05771166]
[1738135838475,0.12549,234.25,234.19,23.776884]
[1738135839481,6.72421166,234.3,234.23,23.776884]
[1738135840074,82.5,234.31,234.25,23.776884]
[1738135840474,0.12549,234.3,234.25,23.776884]
[1738135840871,0.12549,234.3,234.27,23.776884]
[1738135841073,0.03,234.32,234.28,6.72421166]
[1738135842176,0.03,234.32,234.27,28.045384]
[1738135846891,0.03,234.32,234.27,23.776884]
[1738135847101,0.12549,234.31,234.24,6.72421166]
[1738135847397,0.12549,234.31,234.25,23.776884]
[1738135848296,0.03,234.32,234.27,23.776884]
[1738135849494,0.12549,234.31,234.25,4.2689]
[1738135850203,0.12549,234.31,234.26,23.776884]
[1738135850599,0.12549,234.31,234.25,23.776884]
[1738135853886,0.12549,234.31,234.25,28.045784]
[1738135854196,0.12549,234.31,234.25,23.776884]
[1738135854398,0.12549,234.31,234.25,28.045784]
[1738135854700,0.03,234.32,234.27,6.72421166]
[1738135854909,0.03,234.32,234.27,23.776884]
[1738135855904,0.03,234.32,234.27,4.2685]
[1738135856608,0.15549,234.32,234.27,4.2685]
[1738135856788,6.72421166,234.31,234.26,23.776884]
[1738135856990,0.12549,234.3,234.26,23.776884]
[1738135857699,0.03,234.32,234.22,4.2694]
[1738135857700,0.12549,234.28,234.22,4.2694]
[1738135858102,0.12549,234.28,234.22,28.046284]
[1738135859815,0.12549,234.28,234.22,23.776884]
[1738135860209,0.12549,234.26,234.22,20.0]
[1738135860724,0.12549,234.26,234.19,10.99411166]
[1738135861022,0.12549,234.24,234.17,10.99451166]
[1738135861194,0.12549,234.22,234.16,0.063]
[1738135861398,0.8536,234.28,234.16,0.063]
[1738135861399,0.12549,234.17,234.16,0.063]
[1738135862612,90.81581166,234.2,234.16,0.063]
[1738135863205,0.12549,234.19,234.16,0.063]
[1738135865119,0.12549,234.19,234.18,30.50109566]
[1738135865414,1.6514,234.25,234.19,23.776884]
[1738135865601,8.29211166,234.3,234.23,6.72421166]
[1738135865802,9.14571166,234.3,234.2,6.72421166]
[1738135866004,8.29211166,234.3,234.24,43.776884]
[1738135866203,0.03,234.32,234.29,6.72421166]
[1738135866418,0.03,234.32,234.31,6.72421166]
[1738135866619,0.03,234.32,234.29,6.72421166]
[1738135867222,0.03,234.32,234.3,23.776884]
[1738135867518,0.12549,234.31,234.24,20.0]
[1738135867719,0.12549,234.31,234.23,6.72421166]
[1738135867898,0.12549,234.29,234.23,6.72421166]
[1738135868094,0.12549,234.29,234.24,23.776884]
[1738135868300,0.12549,234.27,234.21,6.72421166]
[1738135868699,0.12549,234.27,234.22,20.0]
[1738135868901,0.12549,234.25,234.22,20.0]
[1738135869824,0.12549,234.25,234.2,20.0]
[1738135870705,10.6321726,234.27,234.23,23.776884]
[1738135871701,10.6321726,234.27,234.19,4.2699]
[1738135872819,10.6321726,234.27,234.19,28.046784]
[1738135873025,10.6321726,234.27,234.2,23.776884]
[1738135873720,0.12549,234.24,234.2,23.776884]
[1738135874044,10.5066826,234.23,234.19,0.063]
[1738135874799,10.5066826,234.23,234.2,23.776884]
[1738135876928,0.12549,234.22,234.2,23.776884]
[1738135877830,0.12549,234.22,234.19,0.063]
[1738135884522,0.12549,234.2,234.19,0.063]
[1738135887928,0.97939,234.2,234.19,0.063]
[1738135891032,11.4860726,234.2,234.19,0.063]
[1738135891635,11.4860726,234.2,234.16,0.063]
[1738135891636,11.91355205,234.2,234.16,0.063]
[1738135891835,10.6321726,234.17,234.16,0.063]
[1738135892634,7.71101593,234.17,234.16,0.063]
[1738135892838,16.05099538,234.17,234.16,0.063]
[1738135894151,16.05099538,234.17,234.12,0.063]
[1738135894152,0.12549,234.13,234.12,0.063]
[1738135894357,7.28449538,234.13,234.12,0.063]
[1738135894751,34.2105991,234.13,234.12,0.063]
[1738135895365,7.28449538,234.13,234.12,0.063]
[1738135895538,8.13869538,234.13,234.12,0.063]
[1738135897157,1.68639,234.09,234.08,0.063]
[1738135897473,1.12549,234.08,234.07,0.0001]
[1738135897647,0.12549,234.07,234.03,0.063]
[1738135897840,0.12549,234.05,234.03,0.063]
[1738135898039,7.28449538,234.04,234.03,0.063]
[1738135898747,11.93938244,234.04,234.03,0.063]
[1738135899365,0.12549,234.03,234.02,0.063]
[1738135899546,10.65740299,234.03,234.02,0.063]
[1738135902658,20.12549,234.01,234.0,0.063]
[1738135902864,42.61679543,234.01,233.96,0.063]
[1738135903071,10.65740299,233.99,233.96,0.063]
[1738135903246,11.08488244,233.99,233.96,0.063]
[1738135904366,11.93958244,233.99,233.96,0.063]
[1738135905973,11.51210299,233.99,233.96,0.063]
[1738135906476,10.65740299,233.99,233.96,0.063]
[1738135906655,0.12549,233.99,233.96,0.063]
[1738135907053,10.65740299,233.99,233.96,0.063]
[1738135907367,0.12549,233.99,233.96,0.063]
[1738135908073,10.65740299,233.99,233.96,0.063]
[1738135908387,11.51210299,233.99,233.96,0.063]
[1738135920587,7.72078734,233.99,233.96,0.063]
[1738135921582,6.86608734,233.97,233.96,0.063]
[1738135922584,7.72088734,233.97,233.96,0.063]
[1738135922762,8.14836679,233.97,233.96,0.063]
[1738135927192,1.0,233.93,233.92,0.063]
[1738135927383,0.12549,233.88,233.84,0.063]
[1738135927682,0.12549,233.84,233.82,1.711336]
[1738135927873,0.12549,233.84,233.8,0.063]
[1738135927874,0.12549,233.84,233.8,23.839884]
[1738135928269,0.12549,233.86,233.8,23.839884]
[1738135928676,6.86608734,233.86,233.8,0.063]
[1738135928871,0.98069,233.84,233.8,0.063]
[1738135929072,7.72128734,233.84,233.8,0.063]
[1738135929281,0.98069,233.84,233.8,0.063]
[1738135929886,7.72128734,233.84,233.8,0.063]
[1738135934196,20.12549,233.81,233.8,0.063]
[1738135934495,26.86608734,233.81,233.8,0.063]
[1738135935795,27.72138734,233.81,233.8,0.063]
[1738135936094,0.12549,233.81,233.8,0.063]
[1738135937303,0.98079,233.81,233.8,0.063]
[1738135938499,7.72138734,233.81,233.8,0.063]
[1738135940998,8.14886679,233.81,233.8,0.063]
[1738135941588,7.72138734,233.81,233.8,0.063]
[1738135942586,0.12549,233.81,233.8,0.063]
[1738135943287,0.12549,233.81,233.8,23.839884]
[1738135943893,0.12549,233.81,233.8,0.063]
[1738135945905,0.98079,233.81,233.8,0.063]
[1738135946293,83.48079,233.81,233.8,0.063]
[1738135947021,0.98079,233.81,233.8,0.063]
[1738135947191,1.40826945,233.81,233.8,0.063]
[1738135948086,0.12549,233.8,233.79,0.063]
[1738135948293,11.52506938,233.8,233.79,0.063]
[1738135948713,11.95254883,233.8,233.79,0.063]
[1738135950807,11.95254883,233.8,233.74,0.063]
[1738135950808,0.12549,233.76,233.74,0.063]
[1738135951016,10.66966938,233.75,233.74,0.063]
[1738135952508,11.52526938,233.75,233.74,0.063]
[1738135954295,94.02526938,233.75,233.74,0.063]
[1738135954903,95.02526938,233.75,233.74,0.063]
[1738135955512,94.02526938,233.75,233.74,0.063]
[1738135958907,10.66966938,233.75,233.74,0.063]
[1738135959408,0.12549,233.75,233.74,0.063]
[1738135959609,0.12549,233.75,233.74,35.92406338]
[1738135959905,0.063,233.8,233.75,23.776884]
[1738135960107,0.18849,233.8,233.75,23.776884]
[1738135960721,11.58806938,233.8,233.74,1.603]
[1738135960919,10.66966938,233.75,233.74,0.063]
[1738135963202,11.52526938,233.75,233.74,0.063]
[1738135965011,10.60717938,233.8,233.74,23.839884]
[1738135965211,10.60717938,233.8,233.76,23.776884]
[1738135965212,0.063,233.8,233.76,23.776884]
[1738135965719,0.063,233.8,233.74,10.60717938]
[1738135965917,0.063,233.8,233.74,0.063]
[1738135966619,0.063,233.8,233.76,23.776884]
[1738135967220,0.063,233.8,233.79,23.776884]
[1738135967722,0.063,233.8,233.79,34.32106338]
[1738135968503,0.063,233.8,233.79,23.776884]
[1738135973740,0.063,233.8,233.76,23.776884]
[1738135974315,0.18849,233.8,233.76,23.776884]
[1738135974815,0.063,233.8,233.74,23.839884]
[1738135975034,1.04389,233.8,233.74,23.839884]
[1738135975535,1.04389,233.8,233.74,0.063]
[1738135975837,1.04389,233.8,233.74,23.839884]
[1738135976969,0.12549,233.78,233.74,23.839884]
[1738135977549,0.12549,233.76,233.74,23.839884]
[1738135977757,0.12549,233.76,233.74,0.063]
[1738135979458,0.063,233.8,233.74,0.063]
[1738135979459,0.98099,233.78,233.74,0.063]
[1738135980765,0.063,233.8,233.74,23.839884]
[1738135980960,0.063,233.8,233.76,23.776884]
[1738135981351,0.18849,233.8,233.74,0.063]
[1738135981548,0.18849,233.8,233.74,23.839884]
[1738135982966,1.04389,233.8,233.74,23.839884]
[1738135983982,1.04389,233.8,233.75,10.54417938]
[1738135984266,0.063,233.8,233.76,23.776884]
[1738135984966,0.063,233.8,233.79,34.32106338]
[1738135986147,0.063,233.8,233.79,38.59836338]
[1738135994581,0.063,233.8,233.79,10.54417938]
[1738135994763,0.063,233.8,233.76,4.2777]
[1738135994973,0.063,233.8,233.75,10.54417938]
[1738135995267,0.18849,233.8,233.75,10.54417938]
[1738135995465,0.18849,233.8,233.74,0.063]
[1738135995466,0.18849,233.8,233.76,23.776884]
[1738135995679,1.04389,233.8,233.74,0.063]
[1738135995853,1.04389,233.8,233.74,23.839884]
[1738135996057,0.18849,233.8,233.74,23.839884]
[1738135996477,1.04389,233.8,233.74,23.839884]
[1738135996968,0.18849,233.8,233.74,23.839884]
[1738135997569,1.04389,233.8,233.74,23.839884]
[1738135998094,0.18849,233.8,233.75,10.54417938]
[1738135998486,0.18849,233.8,233.76,23.776884]
[1738135998863,0.063,233.8,233.76,23.776884]
[1738135999065,0.063,233.8,233.77,10.54417938]
[1738136001697,0.063,233.8,233.75,10.54417938]
[1738136002010,0.12549,233.79,233.74,10.60717938]
[1738136002198,0.12549,233.79,233.74,0.063]
[1738136003370,0.12549,233.79,233.74,23.839884]
[1738136006478,0.12549,233.78,233.74,23.839884]
[1738136006891,0.12549,233.78,233.74,0.063]
[1738136007200,10.66966938,233.75,233.74,0.063]
[1738136008286,11.52526938,233.75,233.74,0.063]
[1738136012389,0.98109,233.75,233.74,0.063]
[1738136012987,0.12549,233.75,233.74,0.063]
[1738136015188,0.12549,233.75,233.74,10.60717938]
[1738136016604,0.12549,233.75,233.74,0.063]
[1738136017307,0.063,233.79,233.74,23.839884]
[1738136017495,0.063,233.79,233.77,10.54417938]
[1738136017699,0.18849,233.79,233.75,10.54417938]
[1738136019107,0.18849,233.79,233.77,10.54417938]
[1738136019807,0.18849,233.79,233.76,23.776884]
[1738136020012,0.18849,233.79,233.75,10.54417938]
[1738136023311,1.04389,233.79,233.75,10.54417938]
[1738136023511,1.04389,233.79,233.74,0.063]
[1738136024612,7.79638563,233.79,233.74,0.063]
[1738136026509,90.29638563,233.79,233.74,0.063]
[1738136027206,82.68849,233.79,233.74,23.839884]
[1738136027610,82.68849,233.79,233.74,28.118084]
[1738136027810,82.68849,233.79,233.75,6.75249563]
[1738136031891,82.68849,233.79,233.76,23.776884]
[1738136032118,82.68849,233.79,233.77,6.75249563]
[1738136032428,0.18849,233.79,233.77,6.75249563]
[1738136032816,0.063,233.79,233.78,23.776884]
[1738136034420,0.063,233.79,233.78,28.054384]
[1738136037105,0.063,233.79,233.78,23.776884]
[1738136038327,0.063,233.79,233.78,28.054384]
[1738136038530,0.063,233.79,233.78,29.558184]
[1738136040626,0.063,233.79,233.78,23.776884]
[1738136040833,0.18849,233.79,233.75,6.75249563]
[1738136041000,0.18849,233.79,233.74,0.063]
[1738136041001,1.04389,233.79,233.74,0.063]
[1738136041201,7.79638563,233.79,233.74,0.063]
[1738136041526,1.04389,233.79,233.74,0.063]
[1738136042300,0.18849,233.79,233.75,23.776884]
[1738136042507,0.18849,233.79,233.75,34.32451541]
[1738136042828,0.18849,233.79,233.75,10.54763141]
[1738136044630,1.04389,233.79,233.75,10.54763141]
[1738136045628,0.18849,233.79,233.75,10.54763141]
[1738136046216,0.18849,233.79,233.76,23.776884]
[1738136046419,1.04389,233.79,233.74,10.61063141]
[1738136047422,1.04389,233.79,233.74,0.063]
[1738136047810,0.18849,233.79,233.74,10.61063141]
[1738136048015,0.18849,233.79,233.75,23.776884]
[1738136050732,1.04389,233.79,233.74,0.063]
[1738136051029,0.12549,233.77,233.74,0.063]
[1738136051615,0.12549,233.75,233.74,0.063]
[1738136053316,0.98109,233.75,233.74,0.063]
[1738136055633,0.12549,233.75,233.74,0.063]
[1738136056616,0.98109,233.75,233.74,0.063]
[1738136058717,0.12549,233.75,233.74,0.063]
[1738136060347,82.5,233.77,233.74,10.61063141]
[1738136061643,0.12549,233.76,233.74,10.61063141]
[1738136062017,0.18849,233.79,233.74,10.61063141]
[1738136062630,0.18849,233.79,233.75,6.75076073]
[1738136063747,1.04389,233.79,233.75,6.75076073]
[1738136064738,1.04389,233.79,233.74,23.839884]
[1738136065046,0.12549,233.77,233.74,0.063]
[1738136065748,0.12549,233.75,233.74,0.063]
[1738136066141,0.98109,233.75,233.74,0.063]
[1738136069925,0.12549,233.75,233.74,0.063]
[1738136074027,0.12549,233.76,233.74,0.063]
[1738136075650,0.12549,233.76,233.74,6.81376073]
[1738136076250,0.12549,233.76,233.74,0.063]
[1738136081257,0.12549,233.76,233.74,6.81376073]
[1738136082457,0.12549,233.76,233.74,0.063]
[1738136083660,0.12549,233.76,233.74,6.81376073]
[1738136084761,0.12549,233.76,233.74,0.063]
[1738136093064,0.12549,233.78,233.74,0.063]
[1738136093372,6.87625073,233.76,233.74,0.063]
[1738136093973,0.12549,233.76,233.74,0.063]
[1738136095270,0.98099,233.77,233.74,0.063]
[1738136098073,7.73175073,233.77,233.74,0.063]
[1738136100460,0.98099,233.77,233.74,0.063]
[1738136100773,0.8555,233.78,233.74,0.063]
[1738136101370,0.12549,233.77,233.74,0.063]
[1738136104883,0.12549,233.76,233.74,0.063]
[1738136105057,6.87625073,233.76,233.74,0.063]
[1738136105981,0.98109,233.75,233.74,0.063]
[1738136108068,7.73185073,233.75,233.74,0.063]
[1738136109680,0.12549,233.74,233.63,6.75076073]
[1738136109887,0.12549,233.68,233.63,6.75076073]
[1738136110883,0.12549,233.69,233.64,6.75076073]
[1738136111260,0.8557,233.7,233.64,6.75076073]
[1738136111678,0.12549,233.69,233.64,6.75076073]
[1738136112482,0.12549,233.7,233.64,6.75076073]
[1738136112682,0.98119,233.7,233.64,6.75076073]
[1738136112885,0.12549,233.68,233.62,6.75076073]
[1738136115190,0.12549,233.66,233.62,6.75076073]
[1738136115890,0.12549,233.66,233.61,6.75076073]
[1738136116084,0.12549,233.66,233.6,6.75076073]
[1738136116288,0.98139,233.66,233.6,6.75076073]
[1738136117078,0.98139,233.66,233.59,0.063]
[1738136117079,0.12549,233.64,233.59,0.063]
[1738136117280,6.87625073,233.64,233.59,0.063]
[1738136117485,0.12549,233.64,233.59,6.81376073]
[1738136118092,0.98149,233.64,233.59,6.81376073]
[1738136118990,0.98149,233.64,233.6,6.75076073]
[1738136119289,0.98149,233.64,233.59,0.063]
[1738136119972,7.73225073,233.64,233.59,0.063]
[1738136120693,0.12549,233.64,233.59,6.81376073]
[1738136121393,0.98149,233.64,233.59,0.063]
[1738136122489,0.12549,233.64,233.59,6.81376073]
[1738136122691,0.12549,233.64,233.6,6.75076073]
[1738136122893,82.5,233.69,233.63,6.75076073]
[1738136123074,6.75076073,233.73,233.67,20.0]
[1738136123277,0.063,233.74,233.71,6.75076073]
[1738136123474,0.063,233.74,233.73,6.75076073]
[1738136123877,0.063,233.74,233.73,30.52764473]
[1738136124995,0.063,233.74,233.73,34.80604473]
[1738136128596,0.063,233.74,233.73,41.07384473]
[1738136128901,0.063,233.79,233.75,1.5536]
[1738136129089,0.063,233.79,233.78,30.52764473]
[1738136129892,0.063,233.79,233.78,34.80514473]
[1738136131182,0.063,233.79,233.78,30.52764473]
[1738136132687,0.18849,233.79,233.77,6.75076073]
[1738136133002,0.18849,233.79,233.78,23.776884]
[1738136133688,0.18849,233.79,233.76,6.75076073]
[1738136134002,1.04389,233.79,233.74,6.75076073]
[1738136134379,1.04389,233.79,233.76,23.776884]
[1738136138203,1.04389,233.79,233.74,6.78076073]
[1738136138409,6.75076073,233.78,233.74,0.03]
[1738136138593,0.12549,233.77,233.74,0.03]
[1738136139186,0.12549,233.78,233.74,0.03]
[1738136139592,0.98099,233.78,233.74,6.78076073]
[1738136139790,0.18849,233.79,233.74,6.78076073]
[1738136140201,0.18849,233.79,233.76,23.776884]
[1738136142208,0.063,233.79,233.78,30.52764473]
[1738136145208,0.18849,233.79,233.76,6.75076073]
[1738136145612,0.18849,233.79,233.78,23.776884]
[1738136146414,0.063,233.79,233.78,6.75076073]
[1738136147009,0.063,233.79,233.78,30.52764473]
[1738136147214,0.063,233.79,233.78,34.80514473]
[1738136149220,0.063,233.79,233.78,30.52764473]
[1738136150113,0.063,233.79,233.78,23.776884]
[1738136151018,0.063,233.79,233.78,30.52764473]
[1738136158826,0.063,233.79,233.78,23.776884]
[1738136159126,1.04389,233.79,233.74,6.78076073]
[1738136159502,1.04389,233.79,233.74,0.03]
[1738136160312,0.12549,233.76,233.74,0.03]
[1738136160722,6.75076073,233.75,233.74,0.03]
[1738136161026,6.87625073,233.75,233.74,0.03]
[1738136161825,0.12549,233.75,233.74,0.03]
[1738136163715,6.87625073,233.75,233.74,0.03]
[1738136164424,0.12549,233.75,233.74,0.03]
[1738136166414,6.81376073,233.79,233.74,0.03]
[1738136166721,6.81376073,233.79,233.75,23.776884]
[1738136166722,0.063,233.79,233.75,23.776884]
[1738136166927,0.18849,233.79,233.75,23.776884]